[Event "EYTCC U18 Girls 2019"]
[Site "Pardubice"]
[Date "2019.07.12"]
[Round "2.30"]
[White "Aydin, Gulenay"]
[Black "Ciolacu, Alessia-Mihaela"]
[Result "0-1"]
[ECO "C48"]
[WhiteElo "1934"]
[BlackElo "2199"]
[Annotator "NA"]
[PlyCount "90"]
[EventDate "2019.07.11"]
[EventType "swiss"]
[EventCountry "CZE"]
[SourceTitle "playchess.com"]
[Source "ChessBase"]
[SourceQuality "1"]
[WhiteTeam "Turkey"]
[BlackTeam "Romania"]
[WhiteTeamCountry "TUR"]
[BlackTeamCountry "ROU"]
[TimeControl "40/5400+30:1800+30"]

1. e4 {[%emt 0:00:00]} e5 {[%emt 0:00:00]} 2. Nf3 {[%emt 0:00:00]} Nc6 {[%emt 0:00:00]} 3. Nc3 {[%emt 0:00:00]} Nf6 {[%emt 0:00:00]} 4. Bb5 {[%emt 0:00:00]} Nd4 {[%emt 0:00:00]} 5. Ba4 {[%emt 0:00:48]} Bc5 {[%emt 0:00:01]} 6. O-O {[%emt 0:01:08]} Qe7 {[%emt 0:00:28]} 7. d3 {[%emt 0:05:38]} O-O {[%emt 0:02:04]} 8. Nxd4 {[%emt 0:08:01]} Bxd4 {[%emt 0:01:40]} 9. Ne2 {[%emt 0:02:43]} Bb6 {[%emt 0:02:55]} 10. Ng3 {[%emt 0:02:11]} d6 {[%emt 0:02:40]} 11. h3 {[%emt 0:01:59]} h6 {[%emt 0:02:41]} 12. Qf3 {[%emt 0:04:57]} Nh7 {[%emt 0:04:58]} 13. Bb3 {[%emt 0:08:36]} Ng5 {[%emt 0:13:44]} 14. Bxg5 {[%emt 0:09:11]} hxg5 {[%emt 0:05:57]} 15. Rad1 {[%emt 0:04:22]} g6 {[%emt 0:05:11]} 16. c3 {[%emt 0:03:11]} Kg7 {[%emt 0:01:41]} 17. d4 {[%emt 0:04:41]} g4 {[%emt 0:03:23]} 18. hxg4 {[%emt 0:08:13]} Qh4 {[%emt 0:06:56]} 19. g5 {[%emt 0:01:47]} Qxg5 {[%emt 0:00:29]} 20. Qe3 {[%emt 0:01:59]} Qh4 {[%emt 0:02:28]} 21. f4 {[%emt 0:03:46]} c5 {[%emt 0:05:28]} 22. f5 {[%emt 0:17:03]} cxd4 {[%emt 0:07:45]} 23. cxd4 {[%emt 0:00:02]} exd4 {[%emt 0:08:23]} 24. Qd3 {[%emt 0:01:45]} Bd7 {[%emt 0:02:33]} 25. a4 {[%emt 0:03:08]} Rae8 {[%emt 0:04:16]} 26. Rde1 {[%emt 0:01:22]} Re5 {[%emt 0:01:25]} 27. Bc2 {[%emt 0:03:59]} Rc8 {[%emt 0:02:36]} 28. Bb3 {[%emt 0:01:36]} f6 {[%emt 0:03:03]} 29. fxg6 {[%emt 0:01:23]} Rg5 {[%emt 0:00:26]} 30. Nf5+ {[%emt 0:00:35]} Bxf5 {[%emt 0:01:50]} 31. exf5 {[%emt 0:00:08]} Kf8 {[%emt 0:02:13]} 32. a5 {[%emt 0:00:39]} Bc5 {[%emt 0:02:02]} 33. Re4 {[%emt 0:00:50]} Rg4 {[%emt 0:03:38]} 34. Rfe1 {[%emt 0:00:40]} Bb4 {[%emt 0:00:28]} 35. Qc4 {[%emt 0:00:32]} Qxe1+ {[%emt 0:00:28]} 36. Rxe1 {[%emt 0:00:13]} Rxc4 {[%emt 0:00:07]} 37. Re6 {[%emt 0:00:30]} Rc1+ {[%emt 0:01:06]} 38. Kh2 {[%emt 0:00:04]} d5 {[%emt 0:01:44]} 39. Rxf6+ {[%emt 0:00:33]} Kg7 {[%emt 0:01:06]} 40. Rf7+ {[%emt 0:00:55]} Kh6 {[%emt 0:00:26]} 41. Bxd5 {[%emt 0:04:34]} Bd6+ {[%emt 0:04:05]} 42. g3 {[%emt 0:00:19]} Rxg3 {[%emt 0:11:59]} 43. Rh7+ {[%emt 0:00:28]} Kg5 {[%emt 0:00:04]} 44. g7 {[%emt 0:00:23]} Kf6 {[%emt 0:00:47]} 45. Rh6+ {[%emt 0:04:18]} Rg6+ {[%emt 0:00:08]} 0-1

[Event "EYTCC U18 Girls 2019"]
[Site "Pardubice"]
[Date "2019.07.12"]
[Round "2.31"]
[White "Sliwicka, Alicja"]
[Black "Kucharska, Honorata"]
[Result "1/2-1/2"]
[ECO "C15"]
[WhiteElo "2261"]
[BlackElo "2054"]
[Annotator "NA"]
[PlyCount "79"]
[EventDate "2019.07.11"]
[EventType "swiss"]
[EventCountry "CZE"]
[SourceTitle "playchess.com"]
[Source "ChessBase"]
[SourceQuality "1"]
[WhiteTeam "Poland"]
[BlackTeam "Poland"]
[WhiteTeamCountry "POL"]
[BlackTeamCountry "POL"]
[TimeControl "40/5400+30:1800+30"]

1. e4 {[%emt 0:00:00]} e6 {[%emt 0:00:00]} 2. d4 {[%emt 0:00:00]} d5 {[%emt 0:00:00]} 3. Nc3 {[%emt 0:00:00]} Bb4 {[%emt 0:00:08]} 4. Qd3 {[%emt 0:00:13]} dxe4 {[%emt 0:00:31]} 5. Qxe4 {[%emt 0:00:07]} Nf6 {[%emt 0:00:19]} 6. Qh4 {[%emt 0:00:08]} Nc6 {[%emt 0:00:31]} 7. Nf3 {[%emt 0:00:52]} Ne7 {[%emt 0:00:31]} 8. Bd3 {[%emt 0:00:54]} Nf5 {[%emt 0:01:16]} 9. Bxf5 {[%emt 0:01:53]} exf5 {[%emt 0:00:06]} 10. Bg5 {[%emt 0:03:11]} Qe7+ {[%emt 0:02:56]} 11. Ne5 {[%emt 0:04:24]} Bxc3+ {[%emt 0:05:52]} 12. bxc3 {[%emt 0:00:12]} Qe6 {[%emt 0:02:54]} 13. O-O {[%emt 0:02:33]} Ne4 {[%emt 0:01:43]} 14. Rfe1 {[%emt 0:09:47]} O-O {[%emt 0:04:20]} 15. Nd3 {[%emt 0:07:38]} f6 {[%emt 0:04:08]} 16. Bc1 {[%emt 0:07:29]} Qc4 {[%emt 0:05:54]} 17. Ba3 {[%emt 0:08:48]} Rd8 {[%emt 0:09:59]} 18. Be7 {[%emt 0:08:05]} Re8 {[%emt 0:01:12]} 19. Bb4 {[%emt 0:13:46]} Bd7 {[%emt 0:04:43]} 20. Nb2 {[%emt 0:01:53]} Qd5 {[%emt 0:03:08]} 21. f3 {[%emt 0:01:02]} Nd6 {[%emt 0:01:32]} 22. a4 {[%emt 0:08:57]} a5 {[%emt 0:07:14]} 23. Bxd6 {[%emt 0:00:55]} Qxd6 {[%emt 0:00:25]} 24. Nd3 {[%emt 0:01:22]} b6 {[%emt 0:01:09]} 25. Rxe8+ {[%emt 0:01:39]} Rxe8 {[%emt 0:00:34]} 26. Qf2 {[%emt 0:00:06]} Qc6 {[%emt 0:03:45]} 27. Qd2 {[%emt 0:00:35]} Be6 {[%emt 0:04:20]} 28. Nb2 {[%emt 0:01:26]} Bc4 {[%emt 0:01:46]} 29. Nxc4 {[%emt 0:00:24]} Qxc4 {[%emt 0:00:10]} 30. Kf2 {[%emt 0:01:53]} Qc6 {[%emt 0:07:39]} 31. g3 {[%emt 0:01:58]} Qd5 {[%emt 0:03:30]} 32. Qd3 {[%emt 0:02:22]} Rd8 {[%emt 0:02:19]} 33. Rd1 {[%emt 0:03:18]} g6 {[%emt 0:03:52]} 34. Qb5 {[%emt 0:03:02]} Kf7 {[%emt 0:04:02]} 35. Qxd5+ {[%emt 0:01:24]} Rxd5 {[%emt 0:00:09]} 36. Ke3 {[%emt 0:00:39]} Rd7 {[%emt 0:02:07]} 37. Kd3 {[%emt 0:01:01]} Re7 {[%emt 0:02:39]} 38. Rb1 {[%emt 0:00:52]} h5 {[%emt 0:02:26]} 39. c4 {[%emt 0:00:52]} Rd7 {[%emt 0:01:33]} 40. Kc3 {[%emt 0:01:26]} 1/2-1/2

[Event "EYTCC U18 Girls 2019"]
[Site "Pardubice"]
[Date "2019.07.12"]
[Round "2.32"]
[White "Malicka, Maria"]
[Black "Sowa, Wiktoria"]
[Result "1/2-1/2"]
[ECO "B33"]
[WhiteElo "2115"]
[BlackElo "2108"]
[Annotator "NA"]
[PlyCount "84"]
[EventDate "2019.07.11"]
[EventType "swiss"]
[EventCountry "CZE"]
[SourceTitle "playchess.com"]
[Source "ChessBase"]
[SourceQuality "1"]
[WhiteTeam "Poland"]
[BlackTeam "Poland"]
[WhiteTeamCountry "POL"]
[BlackTeamCountry "POL"]
[TimeControl "40/5400+30:1800+30"]

1. e4 {[%emt 0:00:00]} c5 {[%emt 0:00:00]} 2. Nf3 {[%emt 0:00:00]} Nc6 {[%emt 0:00:08]} 3. d4 {[%emt 0:00:00]} cxd4 {[%emt 0:00:23]} 4. Nxd4 {[%emt 0:00:00]} Nf6 {[%emt 0:00:06]} 5. Nc3 {[%emt 0:00:00]} e5 {[%emt 0:00:23]} 6. Ndb5 {[%emt 0:00:00]} d6 {[%emt 0:00:12]} 7. Bg5 {[%emt 0:00:04]} a6 {[%emt 0:00:30]} 8. Na3 {[%emt 0:00:05]} b5 {[%emt 0:00:12]} 9. Nd5 {[%emt 0:00:05]} Be7 {[%emt 0:00:37]} 10. Bxf6 {[%emt 0:00:07]} Bxf6 {[%emt 0:00:10]} 11. c3 {[%emt 0:00:05]} Bg5 {[%emt 0:00:34]} 12. Nc2 {[%emt 0:00:12]} Ne7 {[%emt 0:00:42]} 13. h4 {[%emt 0:02:23]} Bh6 {[%emt 0:02:34]} 14. a4 {[%emt 0:00:31]} bxa4 {[%emt 0:00:44]} 15. Ncb4 {[%emt 0:00:46]} O-O {[%emt 0:00:36]} 16. Qxa4 {[%emt 0:01:12]} a5 {[%emt 0:01:29]} 17. Nxe7+ {[%emt 0:00:14]} Qxe7 {[%emt 0:01:01]} 18. Nd5 {[%emt 0:00:05]} Qd8 {[%emt 0:02:31]} 19. Bb5 {[%emt 0:01:36]} Be6 {[%emt 0:01:23]} 20. Bc6 {[%emt 0:02:57]} Rb8 {[%emt 0:00:59]} 21. b4 {[%emt 0:00:23]} axb4 {[%emt 0:01:16]} 22. cxb4 {[%emt 0:00:06]} Kh8 {[%emt 0:01:12]} 23. b5 {[%emt 0:14:51]} Bxd5 {[%emt 0:04:18]} 24. Bxd5 {[%emt 0:02:16]} Qb6 {[%emt 0:01:01]} 25. O-O {[%emt 0:12:29]} Qxb5 {[%emt 0:10:29]} 26. Qxb5 {[%emt 0:00:25]} Rxb5 {[%emt 0:00:05]} 27. Bxf7 {[%emt 0:01:50]} Bd2 {[%emt 0:04:44]} 28. Rfb1 {[%emt 0:08:35]} Bb4 {[%emt 0:06:22]} 29. h5 {[%emt 0:07:43]} Rbb8 {[%emt 0:04:52]} 30. Ra7 {[%emt 0:08:09]} Bc5 {[%emt 0:19:03]} 31. Rxb8 {[%emt 0:02:23]} Rxb8 {[%emt 0:00:07]} 32. Rd7 {[%emt 0:01:11]} Rf8 {[%emt 0:02:03]} 33. Kf1 {[%emt 0:06:45]} g6 {[%emt 0:04:52]} 34. hxg6 {[%emt 0:00:47]} hxg6 {[%emt 0:00:14]} 35. f3 {[%emt 0:01:13]} Kg7 {[%emt 0:01:46]} 36. Bd5+ {[%emt 0:00:07]} Kh6 {[%emt 0:03:15]} 37. Rf7 {[%emt 0:04:15]} Rb8 {[%emt 0:03:36]} 38. Rb7 {[%emt 0:00:10]} Rc8 {[%emt 0:00:50]} 39. Ke2 {[%emt 0:06:38]} Kg5 {[%emt 0:02:03]} 40. Rf7 {[%emt 0:05:21]} Rb8 {[%emt 0:02:08]} 41. Rb7 {[%emt 0:36:32]} Rh8 {[%emt 0:34:39]} 42. Be6 {[%emt 0:00:42]} Rf8 {[%emt 0:01:05]} 1/2-1/2

[Event "EYTCC U18 Girls 2019"]
[Site "Pardubice"]
[Date "2019.07.12"]
[Round "2.33"]
[White "Kopcova, Ludmila"]
[Black "Katkov, Michelle"]
[Result "1/2-1/2"]
[ECO "E24"]
[WhiteElo "1980"]
[BlackElo "2129"]
[Annotator "NA"]
[PlyCount "118"]
[EventDate "2019.07.11"]
[EventType "swiss"]
[EventCountry "CZE"]
[SourceTitle "playchess.com"]
[Source "ChessBase"]
[SourceQuality "1"]
[WhiteTeam "Czech Republic"]
[BlackTeam "Israel"]
[WhiteTeamCountry "CZE"]
[BlackTeamCountry "ISR"]
[TimeControl "40/5400+30:1800+30"]

1. d4 {[%emt 0:00:00]} Nf6 {[%emt 0:00:00]} 2. c4 {[%emt 0:00:00]} e6 {[%emt 0:00:00]} 3. Nc3 {[%emt 0:00:00]} Bb4 {[%emt 0:00:00]} 4. a3 {[%emt 0:00:00]} Bxc3+ {[%emt 0:00:00]} 5. bxc3 {[%emt 0:00:00]} Nc6 {[%emt 0:00:44]} 6. e3 {[%emt 0:00:25]} O-O {[%emt 0:00:57]} 7. Bd3 {[%emt 0:00:22]} e5 {[%emt 0:00:18]} 8. Ne2 {[%emt 0:13:57]} e4 {[%emt 0:00:25]} 9. Bc2 {[%emt 0:00:06]} b6 {[%emt 0:00:17]} 10. Ng3 {[%emt 0:01:25]} Ba6 {[%emt 0:01:25]} 11. Nxe4 {[%emt 0:01:46]} Bxc4 {[%emt 0:01:08]} 12. Nxf6+ {[%emt 0:03:32]} Qxf6 {[%emt 0:00:06]} 13. Bd3 {[%emt 0:00:04]} Na5 {[%emt 0:02:17]} 14. Bxc4 {[%emt 0:02:44]} Nxc4 {[%emt 0:00:10]} 15. O-O {[%emt 0:00:14]} d5 {[%emt 0:07:12]} 16. f3 {[%emt 0:16:11]} Qg6 {[%emt 0:09:37]} 17. Re1 {[%emt 0:04:19]} Rae8 {[%emt 0:03:41]} 18. Ra2 {[%emt 0:07:49]} f5 {[%emt 0:11:19]} 19. Rae2 {[%emt 0:04:18]} a5 {[%emt 0:21:39]} 20. Qb3 {[%emt 0:10:59]} Qf7 {[%emt 0:02:57]} 21. a4 {[%emt 0:01:55]} Re6 {[%emt 0:02:13]} 22. Qc2 {[%emt 0:10:22]} Qg6 {[%emt 0:12:41]} 23. e4 {[%emt 0:06:57]} fxe4 {[%emt 0:03:52]} 24. fxe4 {[%emt 0:00:05]} dxe4 {[%emt 0:00:47]} 25. Qb3 {[%emt 0:00:42]} Nd6 {[%emt 0:01:21]} 26. Ba3 {[%emt 0:00:22]} Qf7 {[%emt 0:03:50]} 27. Bxd6 {[%emt 0:01:38]} cxd6 {[%emt 0:00:02]} 28. h3 {[%emt 0:05:46]} Rb8 {[%emt 0:06:08]} 29. Rf2 {[%emt 0:04:15]} Rf6 {[%emt 0:01:05]} 30. Qxf7+ {[%emt 0:00:16]} Kxf7 {[%emt 0:00:24]} 31. Rxe4 {[%emt 0:00:29]} Rxf2 {[%emt 0:00:36]} 32. Kxf2 {[%emt 0:00:02]} Rc8 {[%emt 0:00:36]} 33. d5 {[%emt 0:01:47]} Rxc3 {[%emt 0:00:56]} 34. Re6 {[%emt 0:00:07]} Rb3 {[%emt 0:04:08]} 35. Rxd6 {[%emt 0:00:19]} Ke7 {[%emt 0:00:18]} 36. Re6+ {[%emt 0:01:45]} Kd7 {[%emt 0:00:05]} 37. Rc6 {[%emt 0:00:14]} b5 {[%emt 0:01:52]} 38. axb5 {[%emt 0:00:16]} Rxb5 {[%emt 0:00:11]} 39. Ra6 {[%emt 0:00:11]} Rxd5 {[%emt 0:00:11]} 40. Ra7+ {[%emt 0:00:04]} Ke6 {[%emt 0:02:30]} 41. Rxg7 {[%emt 0:30:35]} Rd7 {[%emt 0:03:49]} 42. Rg4 {[%emt 0:00:00]} Ra7 {[%emt 0:00:06]} 43. Ra4 {[%emt 0:00:00]} Kd5 {[%emt 0:00:17]} 44. Ke3 {[%emt 0:00:00]} Kc5 {[%emt 0:00:09]} 45. Kd3 {[%emt 0:00:00]} Kb5 {[%emt 0:00:10]} 46. Rf4 {[%emt 0:00:00]} Rc7 {[%emt 0:15:29]} 47. Rf8 {[%emt 0:00:00]} a4 {[%emt 0:06:08]} 48. Ra8 {[%emt 0:00:00]} Rd7+ {[%emt 0:04:49]} 49. Kc2 {[%emt 0:00:00]} Rf7 {[%emt 0:00:30]} 50. g4 {[%emt 0:00:00]} Rf2+ {[%emt 0:00:27]} 51. Kb1 Rh2 {[%emt 0:00:30]} 52. g5 {[%emt 0:02:51]} Rxh3 {[%emt 0:00:33]} 53. Ka2 {[%emt 0:00:31]} Rh5 {[%emt 0:03:50]} 54. Ra7 {[%emt 0:00:47]} Kc6 {[%emt 0:01:22]} 55. g6 {[%emt 0:02:41]} hxg6 {[%emt 0:00:11]} 56. Ra6+ {[%emt 0:00:05]} Kb5 {[%emt 0:00:14]} 57. Rxg6 {[%emt 0:00:05]} Rh2+ {[%emt 0:00:37]} 58. Ka3 {[%emt 0:00:28]} Rh3+ {[%emt 0:00:05]} 59. Ka2 {[%emt 0:00:10]} Rh4 {[%emt 0:00:33]} 1/2-1/2

[Event "EYTCC U18 Girls 2019"]
[Site "Pardubice"]
[Date "2019.07.12"]
[Round "2.34"]
[White "Levitan, Ronit"]
[Black "Gresova, Zuzana"]
[Result "0-1"]
[ECO "B22"]
[WhiteElo "2022"]
[BlackElo "1919"]
[Annotator "NA"]
[PlyCount "100"]
[EventDate "2019.07.11"]
[EventType "swiss"]
[EventCountry "CZE"]
[SourceTitle "playchess.com"]
[Source "ChessBase"]
[SourceQuality "1"]
[WhiteTeam "Israel"]
[BlackTeam "Czech Republic"]
[WhiteTeamCountry "ISR"]
[BlackTeamCountry "CZE"]
[TimeControl "40/5400+30:1800+30"]

1. e4 {[%emt 0:00:00]} c5 {[%emt 0:00:00]} 2. c3 {[%emt 0:00:00]} d5 {[%emt 0:00:00]} 3. exd5 {[%emt 0:00:10]} Qxd5 {[%emt 0:00:03]} 4. d4 {[%emt 0:00:12]} Nf6 {[%emt 0:00:45]} 5. Nf3 {[%emt 0:00:08]} Bg4 {[%emt 0:00:24]} 6. Be2 {[%emt 0:00:21]} e6 {[%emt 0:01:05]} 7. h3 {[%emt 0:01:06]} Bh5 {[%emt 0:00:17]} 8. O-O {[%emt 0:00:26]} Nc6 {[%emt 0:00:57]} 9. Be3 {[%emt 0:00:33]} cxd4 {[%emt 0:00:14]} 10. cxd4 {[%emt 0:00:05]} Bd6 {[%emt 0:01:03]} 11. Nc3 {[%emt 0:01:16]} Qa5 {[%emt 0:00:39]} 12. a3 {[%emt 0:07:40]} O-O {[%emt 0:01:41]} 13. Qb3 {[%emt 0:01:49]} Ne7 {[%emt 0:04:55]} 14. Rac1 {[%emt 0:06:28]} Ned5 {[%emt 0:10:59]} 15. Rfd1 {[%emt 0:21:28]} Rab8 {[%emt 0:06:24]} 16. Bd2 {[%emt 0:06:44]} Qd8 {[%emt 0:03:09]} 17. Bg5 {[%emt 0:00:29]} h6 {[%emt 0:07:13]} 18. Bxf6 {[%emt 0:03:35]} gxf6 {[%emt 0:09:56]} 19. Nxd5 {[%emt 0:01:16]} exd5 {[%emt 0:01:02]} 20. g4 {[%emt 0:02:34]} Bg6 {[%emt 0:01:18]} 21. Nh4 {[%emt 0:02:07]} f5 {[%emt 0:10:52]} 22. Nxg6 {[%emt 0:03:17]} fxg6 {[%emt 0:04:44]} 23. Qxd5+ {[%emt 0:00:09]} Kh7 {[%emt 0:01:29]} 24. Qg2 {[%emt 0:00:55]} fxg4 {[%emt 0:01:44]} 25. hxg4 {[%emt 0:01:51]} Rf4 {[%emt 0:01:25]} 26. Rc3 {[%emt 0:02:42]} Qe7 {[%emt 0:02:14]} 27. Re3 {[%emt 0:01:18]} Qg7 {[%emt 0:01:20]} 28. Re4 {[%emt 0:11:11]} Rf6 {[%emt 0:02:36]} 29. g5 {[%emt 0:06:57]} hxg5 {[%emt 0:02:51]} 30. Qxg5 {[%emt 0:01:02]} Rf5 {[%emt 0:02:35]} 31. Rh4+ {[%emt 0:02:11]} Kg8 {[%emt 0:00:28]} 32. Qg2 {[%emt 0:00:44]} b5 {[%emt 0:04:26]} 33. Rg4 {[%emt 0:00:40]} Kh7 {[%emt 0:04:29]} 34. Rd3 {[%emt 0:03:17]} Qf6 {[%emt 0:05:45]} 35. Rf3 {[%emt 0:07:21]} Re8 {[%emt 0:03:04]} 36. Rxf5 {[%emt 0:01:00]} Qxf5 {[%emt 0:01:28]} 37. Qh3+ {[%emt 0:02:36]} Kg7 {[%emt 0:01:23]} 38. Bd3 {[%emt 0:01:39]} Re1+ {[%emt 0:00:08]} 39. Kg2 {[%emt 0:00:18]} Qd5+ {[%emt 0:00:49]} 40. f3 {[%emt 0:00:17]} Re6 {[%emt 0:01:01]} 41. Qh1 {[%emt 0:14:10]} Rf6 {[%emt 0:02:51]} 42. Qd1 {[%emt 0:06:33]} a6 {[%emt 0:02:56]} 43. Be4 {[%emt 0:00:59]} Qf7 {[%emt 0:02:02]} 44. Qd3 {[%emt 0:02:07]} Bf4 {[%emt 0:03:55]} 45. Qb1 {[%emt 0:01:41]} g5 {[%emt 0:01:22]} 46. Kf2 {[%emt 0:04:35]} Rh6 {[%emt 0:02:19]} 47. d5 {[%emt 0:02:26]} Qa7+ {[%emt 0:01:15]} 48. Ke2 {[%emt 0:02:50]} Qe3+ {[%emt 0:00:33]} 49. Kf1 {[%emt 0:00:35]} Rh1+ {[%emt 0:00:21]} 50. Kg2 {[%emt 0:00:12]} Qe2+ {[%emt 0:00:19]} 0-1

[Event "EYTCC U18 Girls 2019"]
[Site "Pardubice"]
[Date "2019.07.12"]
[Round "2.35"]
[White "Kuhar, Larisa"]
[Black "Urh, Zala"]
[Result "0-1"]
[ECO "C67"]
[WhiteElo "1894"]
[BlackElo "2072"]
[Annotator "NA"]
[PlyCount "96"]
[EventDate "2019.07.11"]
[EventType "swiss"]
[EventCountry "CZE"]
[SourceTitle "playchess.com"]
[Source "ChessBase"]
[SourceQuality "1"]
[WhiteTeam "Slovenia"]
[BlackTeam "Slovenia"]
[WhiteTeamCountry "SLO"]
[BlackTeamCountry "SLO"]
[TimeControl "40/5400+30:1800+30"]

1. e4 {[%emt 0:00:00]} e5 {[%emt 0:00:00]} 2. Nf3 {[%emt 0:00:00]} Nc6 {[%emt 0:00:00]} 3. Bb5 {[%emt 0:00:00]} Nf6 {[%emt 0:00:00]} 4. O-O {[%emt 0:00:10]} Nxe4 {[%emt 0:00:00]} 5. d4 {[%emt 0:00:24]} Nd6 {[%emt 0:00:39]} 6. Bxc6 {[%emt 0:00:19]} dxc6 {[%emt 0:00:06]} 7. dxe5 {[%emt 0:00:08]} Nf5 {[%emt 0:00:15]} 8. Qxd8+ {[%emt 0:00:37]} Kxd8 {[%emt 0:00:07]} 9. Nc3 {[%emt 0:00:22]} h6 {[%emt 0:00:12]} 10. h3 {[%emt 0:00:42]} Bd7 {[%emt 0:00:19]} 11. b3 {[%emt 0:01:43]} b6 {[%emt 0:02:12]} 12. Bb2 {[%emt 0:01:41]} Kc8 {[%emt 0:01:00]} 13. Rad1 {[%emt 0:02:18]} Ne7 {[%emt 0:02:46]} 14. Rd2 {[%emt 0:05:36]} c5 {[%emt 0:02:32]} 15. Rfd1 {[%emt 0:09:30]} Be6 {[%emt 0:01:32]} 16. Ne2 {[%emt 0:07:17]} g5 {[%emt 0:04:44]} 17. h4 {[%emt 0:09:30]} g4 {[%emt 0:04:41]} 18. Nh2 {[%emt 0:03:08]} h5 {[%emt 0:05:56]} 19. Rd8+ {[%emt 0:13:55]} Kb7 {[%emt 0:00:05]} 20. Rxa8 {[%emt 0:00:07]} Kxa8 {[%emt 0:00:03]} 21. Nf4 {[%emt 0:00:11]} Ng6 {[%emt 0:11:34]} 22. Nxg6 {[%emt 0:06:43]} fxg6 {[%emt 0:00:05]} 23. Rd8+ {[%emt 0:08:25]} Kb7 {[%emt 0:00:04]} 24. Nf1 {[%emt 0:14:43]} Bg7 {[%emt 0:04:13]} 25. Rxh8 {[%emt 0:00:32]} Bxh8 {[%emt 0:00:04]} 26. c4 {[%emt 0:01:29]} Bg7 {[%emt 0:02:48]} 27. f4 {[%emt 0:06:02]} gxf3 {[%emt 0:03:49]} 28. gxf3 {[%emt 0:00:06]} Bh6 {[%emt 0:00:48]} 29. Kf2 {[%emt 0:03:17]} a6 {[%emt 0:04:07]} 30. Ne3 {[%emt 0:03:32]} Kc6 {[%emt 0:01:39]} 31. Ke2 {[%emt 0:00:22]} b5 {[%emt 0:00:45]} 32. cxb5+ {[%emt 0:00:54]} axb5 {[%emt 0:00:04]} 33. Kd3 {[%emt 0:01:04]} Bf4 {[%emt 0:01:44]} 34. Ng2 {[%emt 0:01:24]} Bg3 {[%emt 0:01:24]} 35. Ke3 {[%emt 0:00:45]} Bh3 {[%emt 0:02:51]} 36. Nf4 {[%emt 0:00:15]} Bf5 {[%emt 0:00:01]} 37. Ng2 {[%emt 0:00:41]} b4 {[%emt 0:02:37]} 38. f4 {[%emt 0:00:32]} Bb1 {[%emt 0:03:17]} 39. Kf3 {[%emt 0:00:28]} Bh2 {[%emt 0:00:05]} 40. Ne1 {[%emt 0:00:36]} Bxa2 {[%emt 0:01:39]} 41. Nd3 {[%emt 0:06:18]} Bxb3 {[%emt 0:09:00]} 42. Kg2 {[%emt 0:05:23]} Bc4 {[%emt 0:00:10]} 43. Nxb4+ {[%emt 0:00:36]} cxb4 {[%emt 0:00:02]} 44. Kxh2 {[%emt 0:00:03]} Kd5 {[%emt 0:00:15]} 45. Kg3 {[%emt 0:07:50]} Ke4 {[%emt 0:01:22]} 46. Bc1 {[%emt 0:06:40]} Be6 {[%emt 0:00:24]} 47. Kf2 {[%emt 0:00:16]} Kd3 {[%emt 0:00:06]} 48. Bb2 {[%emt 0:01:05]} c5 {[%emt 0:00:12]} 0-1

[Event "EYTCC U18 Girls 2019"]
[Site "Pardubice"]
[Date "2019.07.12"]
[Round "2.36"]
[White "Hercog, Nusa"]
[Black "Kralj, Nika"]
[Result "1/2-1/2"]
[ECO "E73"]
[WhiteElo "2053"]
[BlackElo "1807"]
[Annotator "NA"]
[PlyCount "84"]
[EventDate "2019.07.11"]
[EventType "swiss"]
[EventCountry "CZE"]
[SourceTitle "playchess.com"]
[Source "ChessBase"]
[SourceQuality "1"]
[WhiteTeam "Slovenia"]
[BlackTeam "Slovenia"]
[WhiteTeamCountry "SLO"]
[BlackTeamCountry "SLO"]
[TimeControl "40/5400+30:1800+30"]

1. d4 {[%emt 0:00:00]} Nf6 {[%emt 0:00:00]} 2. c4 {[%emt 0:00:00]} g6 {[%emt 0:00:00]} 3. Nc3 {[%emt 0:00:00]} d6 {[%emt 0:00:00]} 4. e4 {[%emt 0:00:04]} Bg7 {[%emt 0:00:00]} 5. Be2 {[%emt 0:00:12]} O-O {[%emt 0:01:54]} 6. Bg5 {[%emt 0:00:09]} Nc6 {[%emt 0:00:51]} 7. d5 {[%emt 0:00:22]} Ne5 {[%emt 0:00:35]} 8. Qd2 {[%emt 0:00:24]} c6 {[%emt 0:00:55]} 9. Nf3 {[%emt 0:00:22]} Nxf3+ {[%emt 0:05:16]} 10. Bxf3 {[%emt 0:00:09]} Bd7 {[%emt 0:04:37]} 11. O-O {[%emt 0:01:15]} Rc8 {[%emt 0:00:52]} 12. Rfe1 {[%emt 0:03:01]} cxd5 {[%emt 0:03:20]} 13. cxd5 {[%emt 0:00:09]} Qc7 {[%emt 0:02:17]} 14. Rac1 {[%emt 0:09:20]} Qb8 {[%emt 0:00:43]} 15. Bd1 {[%emt 0:16:01]} b5 {[%emt 0:04:38]} 16. b4 {[%emt 0:00:56]} Rc4 {[%emt 0:08:51]} 17. a3 {[%emt 0:05:09]} Rfc8 {[%emt 0:00:26]} 18. Bb3 {[%emt 0:01:22]} R4c7 {[%emt 0:00:17]} 19. h3 {[%emt 0:05:49]} Be8 {[%emt 0:05:50]} 20. f4 {[%emt 0:14:20]} h6 {[%emt 0:02:09]} 21. Bh4 {[%emt 0:04:13]} Nd7 {[%emt 0:07:47]} 22. Ne2 {[%emt 0:06:04]} Nb6 {[%emt 0:02:22]} 23. Rxc7 {[%emt 0:04:42]} Rxc7 {[%emt 0:00:04]} 24. Rc1 {[%emt 0:01:14]} Kf8 {[%emt 0:13:33]} 25. Bf2 {[%emt 0:05:06]} Nd7 {[%emt 0:11:14]} 26. Bd4 {[%emt 0:07:00]} Rxc1+ {[%emt 0:04:55]} 27. Qxc1 {[%emt 0:00:28]} Bxd4+ {[%emt 0:01:27]} 28. Nxd4 {[%emt 0:00:05]} Qb6 {[%emt 0:00:15]} 29. Qc3 {[%emt 0:05:06]} g5 {[%emt 0:03:47]} 30. Kh2 {[%emt 0:02:32]} Nf6 {[%emt 0:04:21]} 31. fxg5 {[%emt 0:01:34]} hxg5 {[%emt 0:02:57]} 32. Bc2 {[%emt 0:05:24]} Bd7 {[%emt 0:00:46]} 33. g4 {[%emt 0:00:47]} Kg7 {[%emt 0:01:03]} 34. Qd2 {[%emt 0:00:33]} Nh7 {[%emt 0:00:55]} 35. Qc3 {[%emt 0:00:26]} f6 {[%emt 0:00:23]} 36. Kg3 {[%emt 0:00:17]} Nf8 {[%emt 0:00:25]} 37. h4 {[%emt 0:02:04]} gxh4+ {[%emt 0:00:02]} 38. Kxh4 {[%emt 0:00:04]} Ng6+ {[%emt 0:00:14]} 39. Kg3 {[%emt 0:00:09]} Ne5 {[%emt 0:03:09]} 40. Bd1 {[%emt 0:01:10]} a6 {[%emt 0:04:48]} 41. Be2 {[%emt 0:08:51]} Kg6 {[%emt 0:05:39]} 42. Qd2 {[%emt 0:14:21]} Bc8 {[%emt 0:04:04]} 1/2-1/2